[Event "Early-Titled-Tuesday-Blitz-October-03-2023"]
[Site "Chess.com"]
[Date "2023.10.03"]
[Round "4"]
[White "Cambek64"]
[Black "Hasangatin_Ramil"]
[Result "0-1"]
[WhiteElo "2476"]
[BlackElo "2734"]
[TimeControl "180+1"]
[EndTime "8:41:09 PDT"]
[Termination "Hasangatin_Ramil won by resignation"]

1. b3 {[%clk 0:02:58.3]} 1... e5 {[%clk 0:02:59.7]} 2. Bb2 {[%clk 0:02:58.5]}
2... d6 {[%clk 0:03:00.3]} 3. e3 {[%clk 0:02:58.2]} 3... Nf6 {[%clk 0:02:59.7]}
4. c4 {[%clk 0:02:55.3]} 4... g6 {[%clk 0:02:58.4]} 5. d3 {[%clk 0:02:55.4]}
5... Bg7 {[%clk 0:02:58.1]} 6. Nd2 {[%clk 0:02:55.8]} 6... O-O {[%clk
0:02:58.6]} 7. a3 {[%clk 0:02:56.1]} 7... Re8 {[%clk 0:02:56.1]} 8. Qc2 {[%clk
0:02:54.6]} 8... c6 {[%clk 0:02:55.8]} 9. Ngf3 {[%clk 0:02:49.7]} 9... Bg4
{[%clk 0:02:55.5]} 10. Be2 {[%clk 0:02:49]} 10... Nbd7 {[%clk 0:02:54.5]} 11. h3
{[%clk 0:02:49.5]} 11... Be6 {[%clk 0:02:54.4]} 12. Ng5 {[%clk 0:02:43.4]} 12...
d5 {[%clk 0:02:54.6]} 13. Nxe6 {[%clk 0:02:40.1]} 13... Rxe6 {[%clk 0:02:54]}
14. O-O {[%clk 0:02:35.9]} 14... Qe7 {[%clk 0:02:50.4]} 15. cxd5 {[%clk
0:02:34.9]} 15... cxd5 {[%clk 0:02:49.3]} 16. Rac1 {[%clk 0:02:33.8]} 16... Rc6
{[%clk 0:02:48.1]} 17. Qb1 {[%clk 0:02:33.9]} 17... Rac8 {[%clk 0:02:48.8]} 18.
Rxc6 {[%clk 0:02:34.4]} 18... Rxc6 {[%clk 0:02:49.7]} 19. Rc1 {[%clk 0:02:34.5]}
19... Qe6 {[%clk 0:02:45.8]} 20. Rxc6 {[%clk 0:02:32.9]} 20... Qxc6 {[%clk
0:02:45.7]} 21. Qc1 {[%clk 0:02:33.2]} 21... Qxc1+ {[%clk 0:02:45.3]} 22. Bxc1
{[%clk 0:02:33.8]} 22... Ne8 {[%clk 0:02:44.1]} 23. Bb2 {[%clk 0:02:30.3]} 23...
f5 {[%clk 0:02:43.8]} 24. Kf1 {[%clk 0:02:30.2]} 24... Kf7 {[%clk 0:02:43.7]}
25. Ke1 {[%clk 0:02:30.8]} 25... Ke6 {[%clk 0:02:44.1]} 26. Kd1 {[%clk
0:02:31.1]} 26... Bf6 {[%clk 0:02:44.6]} 27. Kc2 {[%clk 0:02:31.7]} 27... Nd6
{[%clk 0:02:44.9]} 28. b4 {[%clk 0:02:16.2]} 28... b5 {[%clk 0:02:43.6]} 29. Bf3
{[%clk 0:02:11.4]} 29... e4 {[%clk 0:02:42.4]} 30. Be2 {[%clk 0:02:09.6]} 30...
Bxb2 {[%clk 0:02:40.7]} 31. Kxb2 {[%clk 0:02:09.3]} 31... a6 {[%clk 0:02:41.3]}
32. Nb3 {[%clk 0:01:56.9]} 32... Nf7 {[%clk 0:02:36.3]} 33. d4 {[%clk
0:01:53.9]} 33... Kd6 {[%clk 0:02:35.5]} 34. Nc5 {[%clk 0:01:54.2]} 34... Nb8
{[%clk 0:02:32]} 35. Kb3 {[%clk 0:01:51.6]} 35... Nd8 {[%clk 0:02:29.2]} 36. a4
{[%clk 0:01:50.8]} 36... Kc6 {[%clk 0:02:29.4]} 37. a5 {[%clk 0:01:46.1]} 37...
Nb7 {[%clk 0:02:26.3]} 38. g4 {[%clk 0:01:37]} 38... fxg4 {[%clk 0:02:19.7]} 39.
Bxg4 {[%clk 0:01:28.4]} 39... Nd6 {[%clk 0:02:18.9]} 40. Kc3 {[%clk 0:01:19.3]}
40... h5 {[%clk 0:02:13.2]} 41. Be6 {[%clk 0:01:18.7]} 41... g5 {[%clk
0:02:13.1]} 42. Kc2 {[%clk 0:01:13.8]} 42... Ne8 {[%clk 0:02:05.6]} 43. Kd1
{[%clk 0:01:02.7]} 43... Nf6 {[%clk 0:02:05.6]} 44. Bc8 {[%clk 0:01:00.8]} 44...
h4 {[%clk 0:01:58.4]} 45. Ke2 {[%clk 0:00:58.9]} 45... Kc7 {[%clk 0:01:27]} 46.
Bxa6 {[%clk 0:00:48.9]} 46... Nc6 {[%clk 0:01:14.4]} 47. Bxb5 {[%clk 0:00:47.6]}
47... Nxb4 {[%clk 0:01:14.9]} 48. Ne6+ {[%clk 0:00:46.6]} 48... Kd6 {[%clk
0:01:13.9]} 49. Nxg5 {[%clk 0:00:47.2]} 49... Kc7 {[%clk 0:00:58.1]} 50. Kd2
{[%clk 0:00:45.3]} 50... Nc6 {[%clk 0:00:57.1]} 51. Bxc6 {[%clk 0:00:44.3]}
51... Kxc6 {[%clk 0:00:58]} 52. Ne6 {[%clk 0:00:42.2]} 52... Kb5 {[%clk
0:00:57.2]} 53. Ng7 {[%clk 0:00:41.9]} 53... Nh7 {[%clk 0:00:54.8]} 54. Nf5
{[%clk 0:00:38.4]} 54... Ng5 {[%clk 0:00:55]} 55. Nxh4 {[%clk 0:00:38.6]} 55...
Kxa5 {[%clk 0:00:55.5]} 56. Nf5 {[%clk 0:00:37.5]} 56... Kb5 {[%clk 0:00:55.7]}
57. Ne7 {[%clk 0:00:36.7]} 57... Kc4 {[%clk 0:00:54.3]} 58. h4 {[%clk
0:00:36.6]} 58... Nf3+ {[%clk 0:00:54.2]} 59. Ke2 {[%clk 0:00:36.5]} 59... Nxh4
{[%clk 0:00:55.1]} 60. Kf1 {[%clk 0:00:33.9]} 60... Nf3 {[%clk 0:00:52]} 61. Kg2
{[%clk 0:00:33.2]} 61... Ne1+ {[%clk 0:00:49.5]} 62. Kg3 {[%clk 0:00:33]} 62...
Nd3 {[%clk 0:00:49.7]} 63. Ng6 {[%clk 0:00:30.9]} 63... Nb4 {[%clk 0:00:48.8]}
64. Nf4 {[%clk 0:00:27.4]} 64... Nd3 {[%clk 0:00:47.7]} 65. Kg2 {[%clk
0:00:19.3]} 65... Nxf4+ {[%clk 0:00:43.2]} 66. exf4 {[%clk 0:00:18.8]} 66...
Kxd4 {[%clk 0:00:44.1]} 67. Kf1 {[%clk 0:00:19.1]} 67... Kc5 {[%clk 0:00:44]}
68. Ke2 {[%clk 0:00:15.2]} 68... d4 {[%clk 0:00:44.4]} 69. Kd2 {[%clk 0:00:14]}
69... Kd5 {[%clk 0:00:44]} 70. Kc2 {[%clk 0:00:14.7]} 70... Ke6 {[%clk
0:00:38.9]} 71. Kb3 {[%clk 0:00:15.1]} 71... Kf5 {[%clk 0:00:38.4]} 72. Kc4
{[%clk 0:00:15.9]} 72... d3 {[%clk 0:00:38.3]} 73. Kd4 {[%clk 0:00:16.6]} 73...
d2 {[%clk 0:00:38.1]} 74. Ke3 {[%clk 0:00:15]} 74... d1=Q {[%clk 0:00:38]} 0-1

[Event "Early-Titled-Tuesday-Blitz-October-03-2023"]
[Site "Chess.com"]
[Date "2023.10.03"]
[Round "4"]
[White "Kirill_Klukin"]
[Black "Anton_Demchenko"]
[Result "0-1"]
[WhiteElo "2700"]
[BlackElo "2917"]
[TimeControl "180+1"]
[EndTime "8:41:11 PDT"]
[Termination "Anton_Demchenko won by resignation"]

1. d4 {[%clk 0:03:00.9]} 1... Nf6 {[%clk 0:02:56.8]} 2. c4 {[%clk 0:03:00.8]}
2... d6 {[%clk 0:02:55.9]} 3. Nc3 {[%clk 0:03:00.8]} 3... e5 {[%clk 0:02:55.4]}
4. Nf3 {[%clk 0:03:00.7]} 4... Nc6 {[%clk 0:02:55.1]} 5. Bg5 {[%clk 0:03:00.3]}
5... h6 {[%clk 0:02:54.9]} 6. Bh4 {[%clk 0:02:45.4]} 6... exd4 {[%clk
0:02:53.5]} 7. Nxd4 {[%clk 0:02:45.2]} 7... Nxd4 {[%clk 0:02:52.8]} 8. Qxd4
{[%clk 0:02:45.1]} 8... g5 {[%clk 0:02:53.5]} 9. Bg3 {[%clk 0:02:45]} 9... Bg7
{[%clk 0:02:53.9]} 10. e3 {[%clk 0:02:43.7]} 10... O-O {[%clk 0:02:53.7]} 11.
Qd2 {[%clk 0:02:39.6]} 11... Be6 {[%clk 0:02:45.8]} 12. h3 {[%clk 0:02:32.5]}
12... Re8 {[%clk 0:02:36.4]} 13. Be2 {[%clk 0:02:28.4]} 13... d5 {[%clk
0:02:34.1]} 14. cxd5 {[%clk 0:02:21.1]} 14... Nxd5 {[%clk 0:02:33.8]} 15. Ne4
{[%clk 0:01:39.3]} 15... Qe7 {[%clk 0:02:23.8]} 16. O-O {[%clk 0:01:23.9]} 16...
Red8 {[%clk 0:02:11.9]} 17. Qa5 {[%clk 0:01:10.9]} 17... b6 {[%clk 0:02:11.6]}
18. Qa4 {[%clk 0:01:06.9]} 18... Qb4 {[%clk 0:02:05.8]} 19. Qxb4 {[%clk
0:01:00.2]} 19... Nxb4 {[%clk 0:02:06.7]} 20. Bxc7 {[%clk 0:00:56.1]} 20... Rd7
{[%clk 0:02:06.6]} 21. Bg3 {[%clk 0:00:45]} 21... f5 {[%clk 0:01:31.6]} 22. Nc3
{[%clk 0:00:42]} 22... Rd2 {[%clk 0:01:29.9]} 23. Bf3 {[%clk 0:00:38.5]} 23...
Rad8 {[%clk 0:01:27.2]} 24. Nb5 {[%clk 0:00:33.7]} 24... Bxb2 {[%clk 0:01:23.5]}
25. Rad1 {[%clk 0:00:17.2]} 25... Bc4 {[%clk 0:01:20.9]} 26. Nd6 {[%clk
0:00:12.8]} 26... Rxd1 {[%clk 0:01:13.2]} 27. Rxd1 {[%clk 0:00:13]} 27... Bxa2
{[%clk 0:01:13.9]} 28. Nxf5 {[%clk 0:00:13.4]} 28... Rxd1+ {[%clk 0:01:08]} 29.
Bxd1 {[%clk 0:00:14.3]} 29... a5 {[%clk 0:01:08.6]} 30. Nxh6+ {[%clk 0:00:14.3]}
30... Kh7 {[%clk 0:01:05.4]} 31. Ng4 {[%clk 0:00:13.1]} 31... b5 {[%clk
0:00:59.5]} 32. Bd6 {[%clk 0:00:13.6]} 32... Be6 {[%clk 0:00:50]} 33. Ne5 {[%clk
0:00:12.6]} 33... Kg7 {[%clk 0:00:45.3]} 34. Bxb4 {[%clk 0:00:06.9]} 34... axb4
{[%clk 0:00:45.7]} 35. Nc6 {[%clk 0:00:07.6]} 35... Bc3 {[%clk 0:00:38.1]} 36.
Na5 {[%clk 0:00:08.2]} 36... Kf6 {[%clk 0:00:32.3]} 37. Bb3 {[%clk 0:00:07.7]}
37... Bd7 {[%clk 0:00:27.3]} 38. Kf1 {[%clk 0:00:07.9]} 38... Ke7 {[%clk
0:00:23.4]} 39. Ke2 {[%clk 0:00:08.1]} 39... Kd6 {[%clk 0:00:23.9]} 40. Kd3
{[%clk 0:00:05.3]} 40... Kc7 {[%clk 0:00:23.8]} 41. Bd5 {[%clk 0:00:05.9]} 41...
Kd6 {[%clk 0:00:21.4]} 42. e4 {[%clk 0:00:06.1]} 42... Be1 {[%clk 0:00:19.6]}
43. Ke2 {[%clk 0:00:06.5]} 43... Bc3 {[%clk 0:00:19.7]} 44. Kd3 {[%clk
0:00:07.1]} 44... Bc8 {[%clk 0:00:08.2]} 45. Nb3 {[%clk 0:00:06.8]} 45... Be5
{[%clk 0:00:06.6]} 46. Nd2 {[%clk 0:00:05.9]} 46... Bf4 {[%clk 0:00:06.4]} 47.
Nb3 {[%clk 0:00:05.7]} 47... Bh2 {[%clk 0:00:03]} 48. Nd4 {[%clk 0:00:06]} 48...
Bd7 {[%clk 0:00:02.1]} 49. Nc2 {[%clk 0:00:06.6]} 49... Kc5 {[%clk 0:00:02.1]}
50. Nd4 {[%clk 0:00:07]} 50... Bg1 {[%clk 0:00:01.4]} 51. Nb3+ {[%clk
0:00:07.8]} 51... Kd6 {[%clk 0:00:01.4]} 52. Ke2 {[%clk 0:00:08.2]} 52... Ke5
{[%clk 0:00:01.9]} 53. Kf1 {[%clk 0:00:05.7]} 53... Bh2 {[%clk 0:00:01.8]} 54.
Ke2 {[%clk 0:00:06.5]} 54... Bf4 {[%clk 0:00:02]} 55. Kd3 {[%clk 0:00:05.6]}
55... Bh2 {[%clk 0:00:02.1]} 56. Ke2 {[%clk 0:00:05.7]} 56... Kd6 {[%clk
0:00:02.3]} 57. Nd4 {[%clk 0:00:04.5]} 57... Be5 {[%clk 0:00:02.8]} 58. Nb3
{[%clk 0:00:04.4]} 58... Bc3 {[%clk 0:00:03]} 59. Kd3 {[%clk 0:00:05]} 59... Ke5
{[%clk 0:00:03.5]} 60. g3 {[%clk 0:00:03.5]} 60... Bxh3 {[%clk 0:00:03.1]} 61.
Nc5 {[%clk 0:00:04.2]} 61... Bf1+ {[%clk 0:00:03.5]} 62. Kc2 {[%clk 0:00:04.1]}
62... Bc4 {[%clk 0:00:04]} 63. Nb3 {[%clk 0:00:04.1]} 63... Be1 {[%clk
0:00:03.6]} 64. Na5 {[%clk 0:00:02.9]} 64... Kd4 {[%clk 0:00:03.3]} 65. Nxc4
{[%clk 0:00:02.3]} 65... bxc4 {[%clk 0:00:03.4]} 66. Bxc4 {[%clk 0:00:03]} 66...
Kxc4 {[%clk 0:00:03.5]} 67. f4 {[%clk 0:00:03.9]} 67... b3+ {[%clk 0:00:03.8]}
68. Kb2 {[%clk 0:00:03.9]} 68... Bxg3 {[%clk 0:00:03.2]} 69. fxg5 {[%clk
0:00:03.9]} 69... Be5+ {[%clk 0:00:04.1]} 70. Kb1 {[%clk 0:00:04.4]} 70... Kd3
{[%clk 0:00:04.1]} 71. g6 {[%clk 0:00:05.3]} 71... Kxe4 {[%clk 0:00:04.5]} 72.
g7 {[%clk 0:00:05.9]} 72... Bxg7 {[%clk 0:00:04.5]} 0-1

[Event "Early-Titled-Tuesday-Blitz-October-03-2023"]
[Site "Chess.com"]
[Date "2023.10.03"]
[Round "4"]
[White "K_A_S_T_O_R"]
[Black "Eagle_2019"]
[Result "1/2-1/2"]
[WhiteElo "2896"]
[BlackElo "2684"]
[TimeControl "180+1"]
[EndTime "8:41:14 PDT"]
[Termination "Game drawn by repetition"]

1. e4 {[%clk 0:03:00.9]} 1... c5 {[%clk 0:02:58.9]} 2. Nf3 {[%clk 0:03:00.4]}
2... e6 {[%clk 0:02:58.6]} 3. d4 {[%clk 0:03:00.7]} 3... cxd4 {[%clk 0:02:58.6]}
4. Nxd4 {[%clk 0:03:01.3]} 4... Nf6 {[%clk 0:02:59.1]} 5. Nc3 {[%clk 0:03:01]}
5... Nc6 {[%clk 0:02:59.3]} 6. Ndb5 {[%clk 0:03:00]} 6... Bc5 {[%clk 0:02:58.5]}
7. Bf4 {[%clk 0:02:58.9]} 7... O-O {[%clk 0:02:58.2]} 8. Bc7 {[%clk 0:02:59.3]}
8... Qe7 {[%clk 0:02:58]} 9. Bd6 {[%clk 0:02:59.8]} 9... Bxd6 {[%clk 0:02:58]}
10. Qxd6 {[%clk 0:03:00.3]} 10... Qd8 {[%clk 0:02:58.3]} 11. O-O-O {[%clk
0:02:59.2]} 11... a6 {[%clk 0:02:58.4]} 12. Nd4 {[%clk 0:02:58.4]} 12... Ne7
{[%clk 0:02:58.3]} 13. f3 {[%clk 0:02:57.2]} 13... b5 {[%clk 0:02:57.4]} 14. g4
{[%clk 0:02:53]} 14... Ne8 {[%clk 0:02:57]} 15. Qg3 {[%clk 0:02:51.4]} 15... b4
{[%clk 0:02:55.2]} 16. Nce2 {[%clk 0:02:50.5]} 16... Qa5 {[%clk 0:02:46.5]} 17.
Kb1 {[%clk 0:02:50.1]} 17... d6 {[%clk 0:02:46.1]} 18. Nc1 {[%clk 0:02:42.3]}
18... e5 {[%clk 0:02:44]} 19. Nf5 {[%clk 0:02:34.8]} 19... Ng6 {[%clk
0:02:22.5]} 20. Bc4 {[%clk 0:02:28.8]} 20... Qc5 {[%clk 0:02:18]} 21. Bd5 {[%clk
0:02:23.9]} 21... Ra7 {[%clk 0:02:14.3]} 22. Nd3 {[%clk 0:02:22.6]} 22... Qb6
{[%clk 0:02:07.6]} 23. Qg1 {[%clk 0:02:12.3]} 23... Qxg1 {[%clk 0:01:57.3]} 24.
Rhxg1 {[%clk 0:02:11.9]} 24... a5 {[%clk 0:01:57.6]} 25. h4 {[%clk 0:02:02.7]}
25... Ba6 {[%clk 0:01:56.7]} 26. h5 {[%clk 0:01:59.3]} 26... Bxd3 {[%clk
0:01:56.1]} 27. hxg6 {[%clk 0:01:57.7]} 27... hxg6 {[%clk 0:01:56.1]} 28. Rxd3
{[%clk 0:01:53.4]} 28... gxf5 {[%clk 0:01:55.4]} 29. gxf5 {[%clk 0:01:52.2]}
29... Nf6 {[%clk 0:01:47.7]} 30. Bc4 {[%clk 0:01:49.8]} 30... Rc8 {[%clk
0:01:41.7]} 31. b3 {[%clk 0:01:48.4]} 31... Rd8 {[%clk 0:00:51.9]} 32. Rgd1
{[%clk 0:01:40.2]} 32... Kh7 {[%clk 0:00:40]} 33. Rxd6 {[%clk 0:01:37.6]} 33...
Rxd6 {[%clk 0:00:38.9]} 34. Rxd6 {[%clk 0:01:38]} 34... Kh6 {[%clk 0:00:34.7]}
35. f4 {[%clk 0:01:08.1]} 35... Re7 {[%clk 0:00:33.8]} 36. fxe5 {[%clk
0:01:04.7]} 36... Rxe5 {[%clk 0:00:34.7]} 37. Bxf7 {[%clk 0:01:03.7]} 37... Kg5
{[%clk 0:00:31.9]} 38. Bd5 {[%clk 0:00:58.5]} 38... Nxd5 {[%clk 0:00:31]} 39.
exd5 {[%clk 0:00:51.2]} 39... Kxf5 {[%clk 0:00:30]} 40. Kc1 {[%clk 0:00:46.2]}
40... Ke4 {[%clk 0:00:27.2]} 41. Rg6 {[%clk 0:00:44.5]} 41... Kxd5 {[%clk
0:00:23.9]} 42. Rxg7 {[%clk 0:00:44]} 42... Kc6 {[%clk 0:00:23.9]} 43. Kb2
{[%clk 0:00:40]} 43... Kb6 {[%clk 0:00:23.8]} 44. Rg8 {[%clk 0:00:38.6]} 44...
Rf5 {[%clk 0:00:23.6]} 45. Rc8 {[%clk 0:00:38]} 45... Re5 {[%clk 0:00:23.3]} 46.
a3 {[%clk 0:00:37.9]} 46... Rf5 {[%clk 0:00:22.2]} 47. Rc4 {[%clk 0:00:37.9]}
47... Kb5 {[%clk 0:00:22.1]} 48. Re4 {[%clk 0:00:35.7]} 48... Rg5 {[%clk
0:00:21.5]} 49. Re6 {[%clk 0:00:33.4]} 49... Rf5 {[%clk 0:00:21.3]} 50. a4+
{[%clk 0:00:33.4]} 50... Kc5 {[%clk 0:00:21.4]} 51. Ra6 {[%clk 0:00:32.7]} 51...
Kd4 {[%clk 0:00:21.3]} 52. Rc6 {[%clk 0:00:33]} 52... Re5 {[%clk 0:00:20.5]} 53.
Rc4+ {[%clk 0:00:29.8]} 53... Kd5 {[%clk 0:00:20.6]} 54. Rc8 {[%clk 0:00:29]}
54... Kd6 {[%clk 0:00:20.8]} 55. Kc1 {[%clk 0:00:27.6]} 55... Rc5 {[%clk
0:00:19.5]} 56. Rxc5 {[%clk 0:00:18.9]} 56... Kxc5 {[%clk 0:00:20.4]} 57. Kd1
{[%clk 0:00:19.5]} 57... Kd5 {[%clk 0:00:20.6]} 58. Ke2 {[%clk 0:00:18.9]} 58...
Ke4 {[%clk 0:00:20.4]} 59. Kd2 {[%clk 0:00:19.1]} 59... Kd4 {[%clk 0:00:20.6]}
60. Kd1 {[%clk 0:00:19.6]} 60... Kd5 {[%clk 0:00:20.7]} 61. Kc1 {[%clk
0:00:19.8]} 61... Kc5 {[%clk 0:00:21]} 62. Kd2 {[%clk 0:00:19.4]} 62... Kd4
{[%clk 0:00:21]} 63. Ke2 {[%clk 0:00:20.1]} 63... Kc3 {[%clk 0:00:20.8]} 64. Kd1
{[%clk 0:00:20.5]} 64... Kd4 {[%clk 0:00:20.7]} 65. Kd2 {[%clk 0:00:21]} 65...
Ke4 {[%clk 0:00:20.2]} 66. c3 {[%clk 0:00:17.6]} 66... bxc3+ {[%clk 0:00:20.8]}
67. Kxc3 {[%clk 0:00:18.5]} 67... Kd5 {[%clk 0:00:21.1]} 68. Kd3 {[%clk
0:00:17.4]} 68... Kc5 {[%clk 0:00:21.3]} 69. Kc2 {[%clk 0:00:18]} 69... Kd4
{[%clk 0:00:19.9]} 70. Kd2 {[%clk 0:00:17.9]} 70... Kc5 {[%clk 0:00:19.2]} 71.
Kc3 {[%clk 0:00:18.2]} 71... Kd5 {[%clk 0:00:19.4]} 72. Kb2 {[%clk 0:00:17.8]}
72... Kd4 {[%clk 0:00:18.7]} 73. Ka3 {[%clk 0:00:15.9]} 73... Kc3 {[%clk
0:00:18.6]} 74. Ka2 {[%clk 0:00:16.4]} 74... Kc2 {[%clk 0:00:19]} 75. Ka3 {[%clk
0:00:15.1]} 75... Kc3 {[%clk 0:00:19.1]} 76. Ka2 {[%clk 0:00:15.5]} 76... Kc2
{[%clk 0:00:19.4]} 77. Ka3 {[%clk 0:00:14.4]} 77... Kc3 {[%clk 0:00:19.6]}
1/2-1/2

[Event "Early-Titled-Tuesday-Blitz-October-03-2023"]
[Site "Chess.com"]
[Date "2023.10.03"]
[Round "4"]
[White "Denis_Makhnyov"]
[Black "Daffidollchess2"]
[Result "1/2-1/2"]
[WhiteElo "2939"]
[BlackElo "2715"]
[TimeControl "180+1"]
[EndTime "8:41:16 PDT"]
[Termination "Game drawn - insufficient material"]

1. f4 {[%clk 0:03:00.9]} 1... Nf6 {[%clk 0:02:59.3]} 2. Nf3 {[%clk 0:03:01.1]}
2... g6 {[%clk 0:02:59.7]} 3. g3 {[%clk 0:03:01.6]} 3... Bg7 {[%clk 0:03:00.1]}
4. Bg2 {[%clk 0:03:02.3]} 4... d6 {[%clk 0:03:00.5]} 5. O-O {[%clk 0:03:02.3]}
5... O-O {[%clk 0:03:00.9]} 6. Nc3 {[%clk 0:03:01.7]} 6... Nc6 {[%clk
0:03:01.1]} 7. e4 {[%clk 0:03:01.7]} 7... e5 {[%clk 0:03:01.3]} 8. d3 {[%clk
0:03:01]} 8... Bg4 {[%clk 0:03:00.7]} 9. h3 {[%clk 0:03:00.6]} 9... Bxf3 {[%clk
0:03:00.9]} 10. Bxf3 {[%clk 0:03:01]} 10... Nd4 {[%clk 0:03:01.4]} 11. Bg2
{[%clk 0:03:01.1]} 11... Nh5 {[%clk 0:03:01.3]} 12. Kh2 {[%clk 0:02:58.7]} 12...
b5 {[%clk 0:02:56.4]} 13. Ne2 {[%clk 0:02:40.5]} 13... Nxe2 {[%clk 0:02:53.6]}
14. Qxe2 {[%clk 0:02:40.8]} 14... f5 {[%clk 0:02:38.2]} 15. exf5 {[%clk
0:02:39.4]} 15... exf4 {[%clk 0:02:38.2]} 16. gxf4 {[%clk 0:02:29.1]} 16... Rb8
{[%clk 0:02:32.3]} 17. fxg6 {[%clk 0:02:26.5]} 17... hxg6 {[%clk 0:02:32]} 18.
Qg4 {[%clk 0:02:20.7]} 18... Qf6 {[%clk 0:02:23.3]} 19. Bd2 {[%clk 0:02:19.8]}
19... Rbe8 {[%clk 0:02:20.1]} 20. Rae1 {[%clk 0:02:18.4]} 20... Rxe1 {[%clk
0:02:19.7]} 21. Bxe1 {[%clk 0:02:06]} 21... Nxf4 {[%clk 0:02:16.4]} 22. Bg3
{[%clk 0:01:55]} 22... Bh6 {[%clk 0:02:15.5]} 23. Be4 {[%clk 0:01:44.9]} 23...
Kg7 {[%clk 0:02:12.8]} 24. Kh1 {[%clk 0:01:42.4]} 24... Qg5 {[%clk 0:01:20.4]}
25. Rxf4 {[%clk 0:00:17.8]} 25... Rxf4 {[%clk 0:01:18.4]} 26. Bxf4 {[%clk
0:00:18.2]} 26... Qxf4 {[%clk 0:01:18.4]} 27. Qxg6+ {[%clk 0:00:19.1]} 27... Kf8
{[%clk 0:01:18.8]} 28. Qg1 {[%clk 0:00:05.6]} 28... Bg7 {[%clk 0:01:11.7]} 29.
b3 {[%clk 0:00:03]} 29... Be5 {[%clk 0:01:06.7]} 30. Bd5 {[%clk 0:00:02]} 30...
Ke7 {[%clk 0:01:03.2]} 31. Be4 {[%clk 0:00:01.5]} 31... b4 {[%clk 0:01:01.6]}
32. Bd5 {[%clk 0:00:01.1]} 32... a5 {[%clk 0:00:58.9]} 33. Be4 {[%clk
0:00:01.8]} 33... Kf8 {[%clk 0:00:52.4]} 34. Bd5 {[%clk 0:00:02.2]} 34... Ke7
{[%clk 0:00:52.6]} 35. Bc6 {[%clk 0:00:02.9]} 35... Kf8 {[%clk 0:00:51.9]} 36.
Be4 {[%clk 0:00:03.5]} 36... Ke7 {[%clk 0:00:52.1]} 37. Bg2 {[%clk 0:00:03.2]}
37... Qg3 {[%clk 0:00:47.5]} 38. Bf1 {[%clk 0:00:02.8]} 38... Qf4 {[%clk
0:00:39.8]} 39. Qg2 {[%clk 0:00:02.4]} 39... d5 {[%clk 0:00:35.8]} 40. Qe2
{[%clk 0:00:01.4]} 40... Kd6 {[%clk 0:00:34.4]} 41. Qg2 {[%clk 0:00:01.8]} 41...
c6 {[%clk 0:00:32.5]} 42. Qg1 {[%clk 0:00:02]} 42... Qd2 {[%clk 0:00:28.6]} 43.
Bg2 {[%clk 0:00:02.9]} 43... Qxc2 {[%clk 0:00:27.9]} 44. Qf1 {[%clk 0:00:03.3]}
44... Kc5 {[%clk 0:00:17.8]} 45. Qe1 {[%clk 0:00:02.8]} 45... Qc3 {[%clk
0:00:15.5]} 46. Qf2+ {[%clk 0:00:02.8]} 46... Qd4 {[%clk 0:00:15.7]} 47. Qf8+
{[%clk 0:00:03.1]} 47... Bd6 {[%clk 0:00:15.5]} 48. Qf1 {[%clk 0:00:02.6]} 48...
Qf4 {[%clk 0:00:13.6]} 49. Qg1+ {[%clk 0:00:02.7]} 49... Qd4 {[%clk 0:00:12.9]}
50. Qc1+ {[%clk 0:00:02.7]} 50... Kb6 {[%clk 0:00:12.8]} 51. Qf1 {[%clk
0:00:02.4]} 51... Qf4 {[%clk 0:00:12.8]} 52. Qxf4 {[%clk 0:00:02.4]} 52... Bxf4
{[%clk 0:00:13]} 53. h4 {[%clk 0:00:03.3]} 53... Kc5 {[%clk 0:00:13.4]} 54. Bh3
{[%clk 0:00:03]} 54... Kd4 {[%clk 0:00:14.3]} 55. Bd7 {[%clk 0:00:03.7]} 55...
c5 {[%clk 0:00:14.2]} 56. Bb5 {[%clk 0:00:04.3]} 56... Kc3 {[%clk 0:00:14]} 57.
Kg2 {[%clk 0:00:04]} 57... Kb2 {[%clk 0:00:12.7]} 58. Bc6 {[%clk 0:00:04.6]}
58... Kxa2 {[%clk 0:00:12.5]} 59. Bxd5 {[%clk 0:00:05.2]} 59... Ka3 {[%clk
0:00:12]} 60. Kf3 {[%clk 0:00:05.9]} 60... Bh6 {[%clk 0:00:12.3]} 61. Ke4 {[%clk
0:00:05.9]} 61... a4 {[%clk 0:00:12.7]} 62. bxa4 {[%clk 0:00:06.4]} 62... Kxa4
{[%clk 0:00:13.6]} 63. Bc4 {[%clk 0:00:06.4]} 63... b3 {[%clk 0:00:13.8]} 64.
Kd5 {[%clk 0:00:07.3]} 64... b2 {[%clk 0:00:12]} 65. Ba2 {[%clk 0:00:07.5]}
65... Kb4 {[%clk 0:00:12.2]} 66. h5 {[%clk 0:00:07.3]} 66... Be3 {[%clk
0:00:12.4]} 67. Bb1 {[%clk 0:00:06.6]} 67... Bh6 {[%clk 0:00:12.2]} 68. d4
{[%clk 0:00:05.5]} 68... cxd4 {[%clk 0:00:11.7]} 69. Kxd4 {[%clk 0:00:06.4]}
69... Bc1 {[%clk 0:00:12]} 70. Ke4 {[%clk 0:00:06.5]} 70... Bh6 {[%clk
0:00:12.6]} 71. Kf5 {[%clk 0:00:07.4]} 71... Bc1 {[%clk 0:00:12.9]} 72. Kg6
{[%clk 0:00:07.9]} 72... Kc3 {[%clk 0:00:13.2]} 73. Ba2 {[%clk 0:00:08.1]} 73...
Be3 {[%clk 0:00:12.8]} 74. h6 {[%clk 0:00:08.5]} 74... Bxh6 {[%clk 0:00:12.7]}
75. Kxh6 {[%clk 0:00:09.4]} 75... Kc2 {[%clk 0:00:13]} 76. Kg6 {[%clk
0:00:10.3]} 76... b1=Q {[%clk 0:00:13.4]} 77. Bxb1+ {[%clk 0:00:10.9]} 1/2-1/2